[Event "Titled Tuesday Blitz November 22 Early 2022"]
[White "Bristy, Mukherjee"]
[Black "Larina, Maria"]
[WhiteFideId "25077325"]
[BlackFideId "24113182"]
[WhiteElo "1715"]
[BlackElo "1848"]
[Result "1-0"]
[Round "02"]
[TimeControl "180+1"]
[Date "2022.11.23"]
[WhiteClock "0:00:21"]
[BlackClock "0:00:03"]

1. d4 {[%clk 0:03:00]}  f5 {[%clk 0:02:58]} 2. Nc3 {[%clk 0:02:58]}  Nf6 {[%clk 0:02:58]} 3. Bg5 {[%clk 0:02:58]}  d5 {[%clk 0:02:57]} 4. Bxf6 {[%clk 0:02:56]}  exf6 {[%clk 0:02:58]} 5. e3 {[%clk 0:02:56]}  Be6 {[%clk 0:02:57]} 6. Qf3 {[%clk 0:02:56]}  Qd7 {[%clk 0:02:54]} 7. Bd3 {[%clk 0:02:56]}  g6 {[%clk 0:02:52]} 8. h4 {[%clk 0:02:57]}  h5 {[%clk 0:02:52]} 9. Nge2 {[%clk 0:02:56]}  c6 {[%clk 0:02:52]} 10. Nf4 {[%clk 0:02:53]}  Bf7 {[%clk 0:02:51]} 11. Qg3 {[%clk 0:02:52]}  Rg8 {[%clk 0:02:49]} 12. f3 {[%clk 0:02:48]}  Bd6 {[%clk 0:02:48]} 13. O-O-O {[%clk 0:02:47]}  a5 {[%clk 0:02:43]} 14. Qh3 {[%clk 0:02:42]}  Na6 {[%clk 0:02:40]} 15. g3 {[%clk 0:02:33]}  Nb4 {[%clk 0:02:40]} 16. e4 {[%clk 0:02:34]}  Nxd3+ {[%clk 0:02:39]} 17. Nxd3 {[%clk 0:02:32]}  fxe4 {[%clk 0:02:33]} 18. Qxd7+ {[%clk 0:02:27]}  Kxd7 {[%clk 0:02:34]} 19. fxe4 {[%clk 0:02:28]}  dxe4 {[%clk 0:02:35]} 20. Nxe4 {[%clk 0:02:28]}  Be7 {[%clk 0:02:33]} 21. Rhf1 {[%clk 0:02:24]}  f5 {[%clk 0:02:24]} 22. Ne5+ {[%clk 0:02:19]}  Ke6 {[%clk 0:02:22]} 23. Ng5+ {[%clk 0:02:18]}  Bxg5+ {[%clk 0:02:21]} 24. hxg5 {[%clk 0:02:19]}  Be8 {[%clk 0:02:15]} 25. Rde1 {[%clk 0:02:16]}  Kd6 {[%clk 0:02:13]} 26. Re3 {[%clk 0:02:10]}  b5 {[%clk 0:02:12]} 27. Rfe1 {[%clk 0:02:10]}  c5 {[%clk 0:02:06]} 28. dxc5+ {[%clk 0:02:01]}  Kxc5 {[%clk 0:02:05]} 29. Rc3+ {[%clk 0:01:42]}  Kb6 {[%clk 0:02:03]} 30. Nf3 {[%clk 0:01:38]}  Bf7 {[%clk 0:01:58]} 31. Re7 {[%clk 0:01:36]}  Bd5 {[%clk 0:01:50]} 32. Ne5 {[%clk 0:01:31]}  Rge8 {[%clk 0:01:25]} 33. Nxg6 {[%clk 0:01:05]}  Rxe7 {[%clk 0:01:20]} 34. Nxe7 {[%clk 0:01:06]}  Be4 {[%clk 0:00:59]} 35. Ng6 {[%clk 0:01:05]}  Rg8 {[%clk 0:00:55]} 36. Nf4 {[%clk 0:00:54]}  Rxg5 {[%clk 0:00:55]} 37. Kd2 {[%clk 0:00:55]}  Rg4 {[%clk 0:00:51]} 38. Nxh5 {[%clk 0:00:53]}  Rg5 {[%clk 0:00:48]} 39. Nf4 {[%clk 0:00:51]}  Rg7 {[%clk 0:00:47]} 40. Ke1 {[%clk 0:00:46]}  b4 {[%clk 0:00:47]} 41. Rc8 {[%clk 0:00:42]}  Rxg3 {[%clk 0:00:46]} 42. Ne2 {[%clk 0:00:36]}  Rh3 {[%clk 0:00:43]} 43. c3 {[%clk 0:00:29]}  bxc3 {[%clk 0:00:41]} 44. bxc3 {[%clk 0:00:27]}  Rh1+ {[%clk 0:00:34]} 45. Kd2 {[%clk 0:00:27]}  Ra1 {[%clk 0:00:33]} 46. Nc1 {[%clk 0:00:26]}  f4 {[%clk 0:00:30]} 47. Rf8 {[%clk 0:00:18]}  f3 {[%clk 0:00:29]} 48. Rf4 {[%clk 0:00:17]}  Bc6 {[%clk 0:00:26]} 49. Kc2 {[%clk 0:00:17]}  Kc5 {[%clk 0:00:09]} 50. Kb2 {[%clk 0:00:17]}  Rxc1 {[%clk 0:00:10]} 51. Kxc1 {[%clk 0:00:17]}  a4 {[%clk 0:00:10]} 52. a3 {[%clk 0:00:16]}  Kb5 {[%clk 0:00:09]} 53. Kd2 {[%clk 0:00:17]}  Kc5 {[%clk 0:00:09]} 54. Ke3 {[%clk 0:00:17]}  Kb5 {[%clk 0:00:09]} 55. Rb4+ {[%clk 0:00:17]}  Kc5 {[%clk 0:00:08]} 56. Rb8 {[%clk 0:00:16]}  Kd6 {[%clk 0:00:07]} 57. Rf8 {[%clk 0:00:16]}  Kc5 {[%clk 0:00:06]} 58. Kd3 {[%clk 0:00:16]}  Kd6 {[%clk 0:00:05]} 59. Kd4 {[%clk 0:00:16]}  Kc7 {[%clk 0:00:05]} 60. c4 {[%clk 0:00:16]}  Kb6 {[%clk 0:00:04]} 61. c5+ {[%clk 0:00:16]}  Kc7 {[%clk 0:00:04]} 62. Kc4 {[%clk 0:00:16]}  Kd7 {[%clk 0:00:04]} 63. Kd4 {[%clk 0:00:16]}  Kc7 {[%clk 0:00:05]} 64. Rf4 {[%clk 0:00:17]}  Kd7 {[%clk 0:00:04]} 65. Rf6 {[%clk 0:00:17]}  Kc7 {[%clk 0:00:04]} 66. Ke3 {[%clk 0:00:17]}  Kd7 {[%clk 0:00:05]} 67. Rh6 {[%clk 0:00:17]}  Kc7 {[%clk 0:00:05]} 68. Rh4 {[%clk 0:00:17]}  Kd7 {[%clk 0:00:05]} 69. Rh2 {[%clk 0:00:17]}  Ke6 {[%clk 0:00:05]} 70. Kd4 {[%clk 0:00:17]}  Kd7 {[%clk 0:00:05]} 71. Rf2 {[%clk 0:00:18]}  Ke6 {[%clk 0:00:05]} 72. Kc4 {[%clk 0:00:18]}  Kd7 {[%clk 0:00:05]} 73. Kb4 {[%clk 0:00:18]}  Ke6 {[%clk 0:00:06]} 74. Ka5 {[%clk 0:00:19]}  Kd5 {[%clk 0:00:06]} 75. Kb6 {[%clk 0:00:19]}  Ba8 {[%clk 0:00:05]} 76. c6 {[%clk 0:00:19]}  Bxc6 {[%clk 0:00:04]} 77. Rd2+ {[%clk 0:00:20]}  Kc4 {[%clk 0:00:03]} 78. Kxc6 {[%clk 0:00:20]}  Kc3 {[%clk 0:00:03]} 79. Rf2 {[%clk 0:00:20]}  Kb3 {[%clk 0:00:03]} 80. Rxf3+ {[%clk 0:00:21]} 1-0


[Site "https://www.chess.com"]

[Event "Titled Tuesday Blitz November 22 Early 2022"]
[White "Buscar, Michael"]
[Black "Nguyen Hong Nhung"]
[WhiteFideId "2603616"]
[BlackFideId "12412201"]
[WhiteElo "2010"]
[BlackElo "1904"]
[Result "0-1"]
[Round "02"]
[TimeControl "180+1"]
[Date "2022.11.23"]
[WhiteClock "0:00:35"]
[BlackClock "0:00:21"]

1. d4 {[%clk 0:02:53]}  f5 {[%clk 0:02:58]} 2. g3 {[%clk 0:02:52]}  Nf6 {[%clk 0:02:58]} 3. Bg2 {[%clk 0:02:52]}  g6 {[%clk 0:02:58]} 4. Nh3 {[%clk 0:02:52]}  Bg7 {[%clk 0:02:58]} 5. Nf4 {[%clk 0:02:52]}  O-O {[%clk 0:02:58]} 6. h4 {[%clk 0:02:52]}  d6 {[%clk 0:02:54]} 7. d5 {[%clk 0:02:48]}  c6 {[%clk 0:02:51]} 8. c4 {[%clk 0:02:48]}  Na6 {[%clk 0:02:47]} 9. Nd2 {[%clk 0:02:47]}  Qe8 {[%clk 0:02:44]} 10. Nf3 {[%clk 0:02:47]}  Nc5 {[%clk 0:02:42]} 11. Ng5 {[%clk 0:02:42]}  h6 {[%clk 0:02:39]} 12. Nf3 {[%clk 0:02:16]}  a5 {[%clk 0:02:26]} 13. Nd4 {[%clk 0:02:07]}  cxd5 {[%clk 0:02:19]} 14. cxd5 {[%clk 0:02:02]}  Nfe4 {[%clk 0:02:13]} 15. h5 {[%clk 0:01:43]}  g5 {[%clk 0:02:08]} 16. Ng6 {[%clk 0:01:43]}  Rf7 {[%clk 0:02:07]} 17. O-O {[%clk 0:01:30]}  e5 {[%clk 0:01:43]} 18. dxe6 {[%clk 0:01:27]}  Nxe6 {[%clk 0:01:43]} 19. Nxf5 {[%clk 0:01:24]}  Rxf5 {[%clk 0:01:00]} 20. Bxe4 {[%clk 0:01:23]}  Rf6 {[%clk 0:00:57]} 21. Qxd6 {[%clk 0:00:57]}  Nf4 {[%clk 0:00:48]} 22. Qe7 {[%clk 0:00:57]}  Nxe2+ {[%clk 0:00:41]} 23. Kg2 {[%clk 0:00:53]}  Bg4 {[%clk 0:00:28]} 24. Be3 {[%clk 0:00:42]}  Bxh5 {[%clk 0:00:25]} 25. Qxb7 {[%clk 0:00:35]}  Bxg6 {[%clk 0:00:21]} 26. Qxa8 {[%clk 0:00:35]}  Bxe4+ {[%clk 0:00:21]} 0-1


[Site "https://www.chess.com"]

[Event "Titled Tuesday Blitz November 22 Early 2022"]
[White "Caruana, Fabiano"]
[Black "Csonka, Balazs"]
[WhiteFideId "2020009"]
[BlackFideId "742910"]
[WhiteElo "2847"]
[BlackElo "2404"]
[Result "1-0"]
[Round "02"]
[TimeControl "180+1"]
[Date "2022.11.22"]
[WhiteClock "0:00:04"]
[BlackClock "0:00:02"]

1. d4 {[%clk 0:03:00]}  d5 {[%clk 0:02:57]} 2. c4 {[%clk 0:02:55]}  e6 {[%clk 0:02:57]} 3. Nf3 {[%clk 0:02:55]}  Nf6 {[%clk 0:02:57]} 4. g3 {[%clk 0:02:55]}  dxc4 {[%clk 0:02:43]} 5. Bg2 {[%clk 0:02:55]}  c6 {[%clk 0:02:38]} 6. O-O {[%clk 0:02:54]}  b5 {[%clk 0:02:37]} 7. b3 {[%clk 0:02:51]}  cxb3 {[%clk 0:02:33]} 8. Qxb3 {[%clk 0:02:52]}  Bb7 {[%clk 0:02:30]} 9. a4 {[%clk 0:02:50]}  a6 {[%clk 0:02:28]} 10. Rd1 {[%clk 0:02:48]}  Be7 {[%clk 0:02:20]} 11. Nc3 {[%clk 0:02:47]}  O-O {[%clk 0:02:18]} 12. Ne5 {[%clk 0:02:46]}  Nd5 {[%clk 0:02:04]} 13. Nxd5 {[%clk 0:02:21]}  cxd5 {[%clk 0:02:01]} 14. axb5 {[%clk 0:02:20]}  axb5 {[%clk 0:02:02]} 15. Rxa8 {[%clk 0:02:20]}  Bxa8 {[%clk 0:02:03]} 16. Qxb5 {[%clk 0:02:21]}  Bd6 {[%clk 0:01:48]} 17. Bf4 {[%clk 0:02:18]}  Bxe5 {[%clk 0:01:43]} 18. Bxe5 {[%clk 0:02:14]}  Nc6 {[%clk 0:01:24]} 19. Bf4 {[%clk 0:02:14]}  Ne7 {[%clk 0:01:20]} 20. Rc1 {[%clk 0:02:07]}  Ng6 {[%clk 0:01:12]} 21. Bd2 {[%clk 0:02:03]}  Qb8 {[%clk 0:01:09]} 22. Qc5 {[%clk 0:01:57]}  Bb7 {[%clk 0:01:01]} 23. h4 {[%clk 0:01:53]}  Rc8 {[%clk 0:00:59]} 24. Qb4 {[%clk 0:01:52]}  Rxc1+ {[%clk 0:00:58]} 25. Bxc1 {[%clk 0:01:53]}  Qc8 {[%clk 0:00:57]} 26. Ba3 {[%clk 0:01:49]}  Nf8 {[%clk 0:00:51]} 27. Bf3 {[%clk 0:01:26]}  Nd7 {[%clk 0:00:50]} 28. Kg2 {[%clk 0:01:27]}  Nf6 {[%clk 0:00:47]} 29. Qe7 {[%clk 0:01:24]}  Bc6 {[%clk 0:00:40]} 30. g4 {[%clk 0:01:21]}  Qe8 {[%clk 0:00:38]} 31. Qc7 {[%clk 0:01:11]}  Qd7 {[%clk 0:00:32]} 32. Qe5 {[%clk 0:01:07]}  Ne4 {[%clk 0:00:30]} 33. g5 {[%clk 0:01:04]}  Qd8 {[%clk 0:00:28]} 34. Bg4 {[%clk 0:00:57]}  Nc3 {[%clk 0:00:18]} 35. h5 {[%clk 0:00:48]}  h6 {[%clk 0:00:13]} 36. g6 {[%clk 0:00:47]}  Be8 {[%clk 0:00:12]} 37. gxf7+ {[%clk 0:00:46]}  Bxf7 {[%clk 0:00:13]} 38. Bxe6 {[%clk 0:00:46]}  Bxe6 {[%clk 0:00:06]} 39. Qxe6+ {[%clk 0:00:47]}  Kh8 {[%clk 0:00:07]} 40. Be7 {[%clk 0:00:44]}  Qe8 {[%clk 0:00:06]} 41. Qe5 {[%clk 0:00:39]}  Ne4 {[%clk 0:00:06]} 42. Bh4 {[%clk 0:00:33]}  Qf7 {[%clk 0:00:05]} 43. f3 {[%clk 0:00:30]}  Nd2 {[%clk 0:00:04]} 44. Bg3 {[%clk 0:00:14]}  Nc4 {[%clk 0:00:04]} 45. Qb8+ {[%clk 0:00:14]}  Kh7 {[%clk 0:00:04]} 46. Qb1+ {[%clk 0:00:15]}  Kh8 {[%clk 0:00:03]} 47. Qg6 {[%clk 0:00:15]}  Qe7 {[%clk 0:00:03]} 48. e4 {[%clk 0:00:14]}  dxe4 {[%clk 0:00:02]} 49. fxe4 {[%clk 0:00:15]}  Nd2 {[%clk 0:00:02]} 50. Be5 {[%clk 0:00:13]}  Kg8 {[%clk 0:00:01]} 51. Kf2 {[%clk 0:00:10]}  Qb7 {[%clk 0:00:02]} 52. Ke3 {[%clk 0:00:08]}  Nc4+ {[%clk 0:00:01]} 53. Kf4 {[%clk 0:00:08]}  Nxe5 {[%clk 0:00:02]} 54. Kxe5 {[%clk 0:00:09]}  Qc7+ {[%clk 0:00:02]} 55. Qd6 {[%clk 0:00:09]}  Qc3 {[%clk 0:00:01]} 56. Qe6+ {[%clk 0:00:06]}  Kh8 {[%clk 0:00:01]} 57. Qf5 {[%clk 0:00:06]}  Kg8 {[%clk 0:00:01]} 58. Qe6+ {[%clk 0:00:06]}  Kh8 {[%clk 0:00:01]} 59. Qe8+ {[%clk 0:00:06]}  Kh7 {[%clk 0:00:01]} 60. Qg6+ {[%clk 0:00:07]}  Kh8 {[%clk 0:00:01]} 61. Kd5 {[%clk 0:00:05]}  Qb3+ {[%clk 0:00:01]} 62. Kd6 {[%clk 0:00:06]}  Qb6+ {[%clk 0:00:02]} 63. Ke5 {[%clk 0:00:06]}  Qc7+ {[%clk 0:00:02]} 64. Qd6 {[%clk 0:00:04]}  Qc1 {[%clk 0:00:02]} 65. d5 {[%clk 0:00:03]}  Qg1 {[%clk 0:00:02]} 66. Ke6 {[%clk 0:00:03]}  Qg5 {[%clk 0:00:02]} 67. Qe5 {[%clk 0:00:03]}  Qg4+ {[%clk 0:00:02]} 68. Qf5 {[%clk 0:00:03]}  Qg3 {[%clk 0:00:02]} 69. d6 {[%clk 0:00:03]}  Qb3+ {[%clk 0:00:02]} 70. Ke7 {[%clk 0:00:04]}  Qb8 {[%clk 0:00:03]} 71. d7 {[%clk 0:00:04]}  Qb4+ {[%clk 0:00:03]} 72. Ke8 {[%clk 0:00:04]}  Qa4 {[%clk 0:00:03]} 73. e5 {[%clk 0:00:04]}  Qb5 {[%clk 0:00:03]} 74. Qe6 {[%clk 0:00:04]}  Qb8+ {[%clk 0:00:02]} 75. d8=Q {[%clk 0:00:04]} 1-0


[Site "https://www.chess.com"]

[Event "Titled Tuesday Blitz November 22 Early 2022"]
[White "Ciuffoletti, Paolo"]
[Black "Goroshkov, Maksym"]
[WhiteFideId "807630"]
[BlackFideId "14142716"]
[WhiteElo "2143"]
[BlackElo "2257"]
[Result "0-1"]
[Round "02"]
[TimeControl "180+1"]
[Date "2022.11.23"]
[WhiteClock "0:00:02"]
[BlackClock "0:00:21"]

1. e4 {[%clk 0:03:00]}  e5 {[%clk 0:02:59]} 2. Nf3 {[%clk 0:02:59]}  d6 {[%clk 0:02:59]} 3. d4 {[%clk 0:02:58]}  Bg4 {[%clk 0:03:00]} 4. dxe5 {[%clk 0:02:56]}  Nd7 {[%clk 0:03:01]} 5. exd6 {[%clk 0:02:49]}  Bxd6 {[%clk 0:02:57]} 6. Bb5 {[%clk 0:02:30]}  Nf6 {[%clk 0:02:49]} 7. Bg5 {[%clk 0:02:28]}  O-O {[%clk 0:02:48]} 8. Bxd7 {[%clk 0:02:24]}  Qxd7 {[%clk 0:02:47]} 9. Bxf6 {[%clk 0:02:22]}  gxf6 {[%clk 0:02:48]} 10. O-O {[%clk 0:02:17]}  Rad8 {[%clk 0:02:42]} 11. Nbd2 {[%clk 0:02:13]}  f5 {[%clk 0:02:35]} 12. e5 {[%clk 0:02:00]}  Bxe5 {[%clk 0:02:33]} 13. Nxe5 {[%clk 0:01:49]}  Qxd2 {[%clk 0:02:30]} 14. Nxg4 {[%clk 0:01:47]}  fxg4 {[%clk 0:02:20]} 15. Qxg4+ {[%clk 0:01:40]}  Kh8 {[%clk 0:02:21]} 16. Rad1 {[%clk 0:01:25]}  Qxc2 {[%clk 0:02:19]} 17. Rxd8 {[%clk 0:01:21]}  Rxd8 {[%clk 0:02:20]} 18. Qg5 {[%clk 0:01:20]}  Re8 {[%clk 0:02:11]} 19. Qf6+ {[%clk 0:01:17]}  Kg8 {[%clk 0:02:11]} 20. Qg5+ {[%clk 0:01:12]}  Qg6 {[%clk 0:02:10]} 21. Qxg6+ {[%clk 0:01:06]}  hxg6 {[%clk 0:02:11]} 22. f3 {[%clk 0:01:06]}  Rd8 {[%clk 0:02:00]} 23. g4 {[%clk 0:01:04]}  Kg7 {[%clk 0:01:58]} 24. Kg2 {[%clk 0:01:03]}  Kf6 {[%clk 0:01:57]} 25. Rf2 {[%clk 0:00:58]}  c5 {[%clk 0:01:57]} 26. Kg3 {[%clk 0:00:58]}  g5 {[%clk 0:01:56]} 27. h4 {[%clk 0:00:51]}  gxh4+ {[%clk 0:01:53]} 28. Kxh4 {[%clk 0:00:51]}  b5 {[%clk 0:01:53]} 29. Rc2 {[%clk 0:00:33]}  c4 {[%clk 0:01:53]} 30. Kg3 {[%clk 0:00:28]}  Rd3 {[%clk 0:01:48]} 31. Kf4 {[%clk 0:00:26]}  a6 {[%clk 0:01:45]} 32. b3 {[%clk 0:00:23]}  cxb3 {[%clk 0:00:48]} 33. axb3 {[%clk 0:00:23]}  a5 {[%clk 0:00:45]} 34. Ra2 {[%clk 0:00:22]}  Rxb3 {[%clk 0:00:39]} 35. Rxa5 {[%clk 0:00:22]}  Rb4+ {[%clk 0:00:40]} 36. Ke3 {[%clk 0:00:22]}  Ke5 {[%clk 0:00:39]} 37. f4+ {[%clk 0:00:18]}  Kd5 {[%clk 0:00:37]} 38. Ra3 {[%clk 0:00:15]}  Re4+ {[%clk 0:00:36]} 39. Kf3 {[%clk 0:00:15]}  b4 {[%clk 0:00:37]} 40. Ra5+ {[%clk 0:00:14]}  Kd4 {[%clk 0:00:36]} 41. Rf5 {[%clk 0:00:13]}  Re3+ {[%clk 0:00:33]} 42. Kf2 {[%clk 0:00:13]}  Re7 {[%clk 0:00:33]} 43. Rb5 {[%clk 0:00:10]}  Kc4 {[%clk 0:00:31]} 44. Rb8 {[%clk 0:00:10]}  b3 {[%clk 0:00:29]} 45. Kf3 {[%clk 0:00:09]}  Kc3 {[%clk 0:00:26]} 46. f5 {[%clk 0:00:09]}  f6 {[%clk 0:00:22]} 47. Kf4 {[%clk 0:00:07]}  Rg7 {[%clk 0:00:21]} 48. Rc8+ {[%clk 0:00:06]}  Kd2 {[%clk 0:00:21]} 49. Rd8+ {[%clk 0:00:06]}  Kc2 {[%clk 0:00:21]} 50. Rc8+ {[%clk 0:00:06]}  Kb1 {[%clk 0:00:22]} 51. Rc6 {[%clk 0:00:06]}  Rf7 {[%clk 0:00:20]} 52. g5 {[%clk 0:00:05]}  fxg5+ {[%clk 0:00:20]} 53. Kxg5 {[%clk 0:00:05]}  Rb7 {[%clk 0:00:21]} 54. Rc3 {[%clk 0:00:04]}  b2 {[%clk 0:00:21]} 55. Rg3 {[%clk 0:00:02]}  Ka1 {[%clk 0:00:21]} 56. Rg1+ {[%clk 0:00:02]}  Ka2 {[%clk 0:00:21]} 57. Rg2 {[%clk 0:00:02]}  Kb3 {[%clk 0:00:21]} 0-1


[Site "https://www.chess.com"]

[Event "Titled Tuesday Blitz November 22 Early 2022"]
[White "D`Arruda, Ricardo D."]
[Black "Svane, Frederik"]
[WhiteFideId "100692"]
[BlackFideId "12923044"]
[WhiteElo "2491"]
[BlackElo "2466"]
[Result "1-0"]
[Round "02"]
[TimeControl "180+1"]
[Date "2022.11.23"]
[WhiteClock "0:00:41"]
[BlackClock "0:00:05"]

1. d4 {[%clk 0:02:58]}  d5 {[%clk 0:02:59]} 2. Nf3 {[%clk 0:02:57]}  Nf6 {[%clk 0:02:58]} 3. g3 {[%clk 0:02:57]}  Bf5 {[%clk 0:02:53]} 4. Bg2 {[%clk 0:02:56]}  e6 {[%clk 0:02:54]} 5. O-O {[%clk 0:02:55]}  c6 {[%clk 0:02:53]} 6. Nh4 {[%clk 0:02:54]}  h5 {[%clk 0:02:53]} 7. Nxf5 {[%clk 0:02:52]}  exf5 {[%clk 0:02:53]} 8. h4 {[%clk 0:02:48]}  Nbd7 {[%clk 0:02:52]} 9. Nd2 {[%clk 0:02:46]}  Bd6 {[%clk 0:02:41]} 10. e3 {[%clk 0:02:40]}  Ne4 {[%clk 0:02:25]} 11. c4 {[%clk 0:02:36]}  g5 {[%clk 0:02:24]} 12. cxd5 {[%clk 0:02:27]}  cxd5 {[%clk 0:02:18]} 13. hxg5 {[%clk 0:02:06]}  h4 {[%clk 0:02:14]} 14. gxh4 {[%clk 0:02:03]}  Rxh4 {[%clk 0:01:45]} 15. f4 {[%clk 0:02:02]}  Nxg5 {[%clk 0:01:24]} 16. fxg5 {[%clk 0:01:37]}  Bh2+ {[%clk 0:01:23]} 17. Kf2 {[%clk 0:01:35]}  Qxg5 {[%clk 0:01:23]} 18. Qf3 {[%clk 0:01:34]}  Rg4 {[%clk 0:01:10]} 19. Rh1 {[%clk 0:01:28]}  Qh4+ {[%clk 0:00:47]} 20. Ke2 {[%clk 0:01:19]}  Nf6 {[%clk 0:00:27]} 21. Nf1 {[%clk 0:01:15]}  Qg5 {[%clk 0:00:05]} 22. Rxh2 {[%clk 0:01:11]}  Ne4 {[%clk 0:00:04]} 23. Bd2 {[%clk 0:01:04]}  Kd7 {[%clk 0:00:05]} 24. Bh3 {[%clk 0:00:48]}  Ke6 {[%clk 0:00:04]} 25. Bxg4 {[%clk 0:00:46]}  fxg4 {[%clk 0:00:05]} 26. Qf4 {[%clk 0:00:43]}  Qg6 {[%clk 0:00:04]} 27. Rh6 {[%clk 0:00:42]}  Kd7 {[%clk 0:00:05]} 28. Rxg6 {[%clk 0:00:41]} 1-0


[Site "https://www.chess.com"]

[Event "Titled Tuesday Blitz November 22 Early 2022"]
[White "Danielian, Vardan"]
[Black "Stribuk, Artiom"]
[WhiteFideId "13301594"]
[BlackFideId "13515659"]
[WhiteElo "2551"]
[BlackElo "2371"]
[Result "0-1"]
[Round "02"]
[TimeControl "180+1"]
[Date "2022.11.23"]
[WhiteClock "0:00:01"]
[BlackClock "0:00:14"]

1. Nf3 {[%clk 0:03:00]}  Nf6 {[%clk 0:02:59]} 2. g3 {[%clk 0:02:56]}  g6 {[%clk 0:02:59]} 3. Bg2 {[%clk 0:02:55]}  Bg7 {[%clk 0:03:00]} 4. O-O {[%clk 0:02:55]}  O-O {[%clk 0:03:01]} 5. d4 {[%clk 0:02:55]}  d5 {[%clk 0:03:01]} 6. c4 {[%clk 0:02:55]}  c6 {[%clk 0:03:01]} 7. cxd5 {[%clk 0:02:55]}  cxd5 {[%clk 0:03:02]} 8. Ne5 {[%clk 0:02:55]}  e6 {[%clk 0:03:02]} 9. Nc3 {[%clk 0:02:55]}  Nfd7 {[%clk 0:03:02]} 10. f4 {[%clk 0:02:53]}  Nc6 {[%clk 0:03:02]} 11. Be3 {[%clk 0:02:53]}  Ne7 {[%clk 0:02:57]} 12. Bf2 {[%clk 0:02:53]}  Nb6 {[%clk 0:02:57]} 13. e4 {[%clk 0:02:52]}  dxe4 {[%clk 0:02:56]} 14. Nxe4 {[%clk 0:02:51]}  Nbd5 {[%clk 0:02:56]} 15. Rc1 {[%clk 0:02:41]}  b6 {[%clk 0:02:55]} 16. Qb3 {[%clk 0:02:31]}  Bb7 {[%clk 0:02:39]} 17. Qa3 {[%clk 0:02:23]}  a5 {[%clk 0:02:29]} 18. Rfd1 {[%clk 0:02:09]}  Nf5 {[%clk 0:01:58]} 19. Nc4 {[%clk 0:01:08]}  Nb4 {[%clk 0:01:41]} 20. Ne5 {[%clk 0:00:44]}  Bd5 {[%clk 0:01:29]} 21. Nc3 {[%clk 0:00:26]}  Bxg2 {[%clk 0:01:14]} 22. Kxg2 {[%clk 0:00:27]}  Qb8 {[%clk 0:01:13]} 23. Qb3 {[%clk 0:00:24]}  Qb7+ {[%clk 0:01:13]} 24. Kg1 {[%clk 0:00:21]}  Rac8 {[%clk 0:01:08]} 25. a3 {[%clk 0:00:17]}  Nc6 {[%clk 0:00:59]} 26. Nxc6 {[%clk 0:00:14]}  Rxc6 {[%clk 0:00:39]} 27. d5 {[%clk 0:00:14]}  Rd6 {[%clk 0:00:34]} 28. dxe6 {[%clk 0:00:14]}  Rxe6 {[%clk 0:00:35]} 29. Qd5 {[%clk 0:00:12]}  Qe7 {[%clk 0:00:33]} 30. Re1 {[%clk 0:00:10]}  Ne3 {[%clk 0:00:27]} 31. Qf3 {[%clk 0:00:08]}  Bd4 {[%clk 0:00:20]} 32. Kh1 {[%clk 0:00:05]}  Re8 {[%clk 0:00:20]} 33. Bg1 {[%clk 0:00:02]}  Nf5 {[%clk 0:00:20]} 34. Rxe6 {[%clk 0:00:02]}  Qxe6 {[%clk 0:00:20]} 35. Rf1 {[%clk 0:00:02]}  h5 {[%clk 0:00:19]} 36. Nd5 {[%clk 0:00:01]}  Rd8 {[%clk 0:00:15]} 37. Bxd4 {[%clk 0:00:01]}  Rxd5 {[%clk 0:00:14]} 0-1


[Site "https://www.chess.com"]

[Event "Titled Tuesday Blitz November 22 Early 2022"]
[White "Dardha, Daniel"]
[Black "Yurasova, Daria"]
[WhiteFideId "240990"]
[BlackFideId "34146919"]
[WhiteElo "2528"]
[BlackElo "2097"]
[Result "1-0"]
[Round "02"]
[TimeControl "180+1"]
[Date "2022.11.23"]
[WhiteClock "0:01:04"]
[BlackClock "0:00:10"]

1. e4 {[%clk 0:02:49]}  e5 {[%clk 0:02:59]} 2. Nf3 {[%clk 0:02:46]}  Nc6 {[%clk 0:02:56]} 3. Bc4 {[%clk 0:02:46]}  Bc5 {[%clk 0:02:54]} 4. d3 {[%clk 0:02:46]}  Nf6 {[%clk 0:02:54]} 5. h3 {[%clk 0:02:46]}  d6 {[%clk 0:02:54]} 6. Nc3 {[%clk 0:02:46]}  a6 {[%clk 0:02:54]} 7. a3 {[%clk 0:02:46]}  Ba7 {[%clk 0:02:54]} 8. Be3 {[%clk 0:02:44]}  h6 {[%clk 0:02:53]} 9. d4 {[%clk 0:02:39]}  O-O {[%clk 0:02:50]} 10. O-O {[%clk 0:02:36]}  exd4 {[%clk 0:02:47]} 11. Nxd4 {[%clk 0:02:37]}  Nxd4 {[%clk 0:02:48]} 12. Bxd4 {[%clk 0:02:37]}  Bxd4 {[%clk 0:02:49]} 13. Qxd4 {[%clk 0:02:38]}  Re8 {[%clk 0:02:49]} 14. f4 {[%clk 0:02:37]}  b5 {[%clk 0:02:42]} 15. Ba2 {[%clk 0:02:35]}  Bb7 {[%clk 0:02:40]} 16. Rae1 {[%clk 0:02:35]}  c5 {[%clk 0:02:35]} 17. Qd3 {[%clk 0:02:28]}  Qb6 {[%clk 0:02:33]} 18. Kh2 {[%clk 0:02:24]}  c4 {[%clk 0:02:32]} 19. Qf3 {[%clk 0:02:22]}  Qd4 {[%clk 0:02:10]} 20. Rd1 {[%clk 0:02:19]}  Qc5 {[%clk 0:02:10]} 21. Rfe1 {[%clk 0:02:19]}  Rad8 {[%clk 0:02:09]} 22. b4 {[%clk 0:02:14]}  cxb3 {[%clk 0:02:02]} 23. Bxb3 {[%clk 0:02:14]}  Qxa3 {[%clk 0:01:56]} 24. Nxb5 {[%clk 0:02:13]}  Qc5 {[%clk 0:01:50]} 25. Nc3 {[%clk 0:02:13]}  Rc8 {[%clk 0:01:46]} 26. Rd3 {[%clk 0:02:10]}  a5 {[%clk 0:01:44]} 27. Rde3 {[%clk 0:02:05]}  Qb4 {[%clk 0:01:41]} 28. Rb1 {[%clk 0:01:55]}  Qc5 {[%clk 0:00:56]} 29. Bxf7+ {[%clk 0:01:52]}  Kxf7 {[%clk 0:00:57]} 30. Rxb7+ {[%clk 0:01:53]}  Kg8 {[%clk 0:00:58]} 31. Rb5 {[%clk 0:01:49]}  Qc7 {[%clk 0:00:57]} 32. Nd5 {[%clk 0:01:43]}  Nxd5 {[%clk 0:00:56]} 33. Rxd5 {[%clk 0:01:44]}  Qxc2 {[%clk 0:00:50]} 34. Rxa5 {[%clk 0:01:42]}  Ra8 {[%clk 0:00:29]} 35. Rd5 {[%clk 0:01:36]}  Qc1 {[%clk 0:00:26]} 36. Rxd6 {[%clk 0:01:25]}  Ra1 {[%clk 0:00:25]} 37. e5 {[%clk 0:01:21]}  Qg1+ {[%clk 0:00:17]} 38. Kg3 {[%clk 0:01:22]}  Rf1 {[%clk 0:00:15]} 39. Qd5+ {[%clk 0:01:18]}  Kh8 {[%clk 0:00:16]} 40. Rf3 {[%clk 0:01:19]}  Rf8 {[%clk 0:00:10]} 41. Rxf1 {[%clk 0:01:08]}  Qxf1 {[%clk 0:00:10]} 42. Qf3 {[%clk 0:01:05]}  Qe1+ {[%clk 0:00:10]} 43. Kh2 {[%clk 0:01:05]}  Rb8 {[%clk 0:00:10]} 44. Ra6 {[%clk 0:01:03]}  Rf8 {[%clk 0:00:09]} 45. Ra8 {[%clk 0:01:03]}  Rxa8 {[%clk 0:00:09]} 46. Qxa8+ {[%clk 0:01:04]}  Kh7 {[%clk 0:00:10]} 47. Qf3 {[%clk 0:01:04]}  Qd2 {[%clk 0:00:10]} 48. Qe4+ {[%clk 0:01:04]}  Kg8 {[%clk 0:00:10]} 49. e6 {[%clk 0:01:04]}  Qd6 {[%clk 0:00:10]} 50. e7 {[%clk 0:01:04]} 1-0


[Site "https://www.chess.com"]